bitfinex/quotes_ETHUSD_20240701
["timestamp","ask_amount","ask_price","bid_price","bid_amount"]
[1719854024101,3.06201139,3471.0,3470.4,0.714]
[1719854024399,9.8407,3471.1,3470.9,0.714]
[1719854024578,2.3607,3471.1,3470.9,0.714]
[1719854024771,2.44011139,3471.3,3470.9,0.714]
[1719854024974,0.06201139,3471.2,3470.9,0.714]
[1719854025376,2.44011139,3471.3,3470.9,0.714]
[1719854025572,2.3781,3471.3,3470.9,0.714]
[1719854029211,2.3781,3471.3,3470.7,2.88118]
[1719854029384,2.3781,3471.3,3470.8,0.714]
[1719854029985,1.86,3471.4,3471.2,0.714]
[1719854030497,1.86,3471.4,3471.0,0.714]
[1719854030905,3.06201139,3471.5,3471.0,0.714]
[1719854031202,0.06201139,3471.5,3471.0,0.714]
[1719854034026,2.2874,3471.6,3471.2,0.714]
[1719854034237,7.48,3471.7,3471.2,0.714]
[1719854036716,7.51157336,3471.7,3471.2,0.714]
[1719854037422,7.48,3471.7,3471.2,0.714]
[1719854038690,7.48,3471.7,3471.3,2.88076]
[1719854039587,3.0,3472.0,3471.1,5.76174]
[1719854039786,3.0,3472.0,3471.2,3.59484]
[1719854039787,0.06201139,3471.9,3471.2,3.59484]
[1719854039985,0.09359935,3471.9,3471.2,3.59484]
[1719854040421,2.301,3471.8,3470.8,2.2804]
[1719854040623,0.06201139,3471.7,3470.9,3.59503]
[1719854040822,0.06201139,3471.7,3471.0,2.881]
[1719854041193,0.06201139,3471.7,3470.9,3.59503]
[1719854042334,0.06201139,3471.7,3469.8,7.57219021]
[1719854042335,0.714,3471.5,3470.5,2.88142]
[1719854042490,2.49331139,3471.4,3470.5,5.76278]
[1719854042826,2.49331139,3471.4,3470.5,2.88136]
[1719854043234,2.49331139,3471.4,3470.6,0.714]
[1719854045721,2.49331139,3471.4,3470.8,0.714]
[1719854047422,2.49331139,3471.4,3470.6,0.714]
[1719854048953,2.49331139,3471.4,3470.3,2.88152]
[1719854049119,2.49331139,3471.4,3470.2,2.4322]
[1719854049120,2.3859,3471.3,3470.2,2.4322]
[1719854049321,2.44791139,3471.2,3470.3,0.714]
[1719854049522,2.44791139,3471.2,3470.1,2.88175]
[1719854049727,2.44791139,3471.2,3470.3,0.714]
[1719854050046,2.76197136,3471.2,3470.3,0.714]
[1719854051161,2.76197136,3471.2,3469.9,2.88186]
[1719854051162,0.714,3471.0,3469.9,2.88186]
[1719854051355,0.714,3470.8,3469.7,5.778446]
[1719854051523,2.31241139,3470.7,3469.8,0.714]
[1719854051941,2.31241139,3470.7,3469.7,5.778446]
[1719854052128,2.31241139,3470.7,3469.9,0.714]
[1719854054351,2.31241139,3470.7,3469.5,2.4682]
[1719854054550,2.4043,3470.5,3469.6,0.714]
[1719854054720,2.4043,3470.3,3469.2,5.35064]
[1719854054920,0.06201139,3470.2,3469.5,0.714]
[1719854059838,2.4043,3470.3,3469.5,0.714]
[1719854060373,2.4043,3470.3,3469.3,2.88242]
[1719854060538,2.4043,3470.3,3469.5,0.714]
[1719854062072,2.4081,3470.1,3469.3,0.714]
[1719854062460,0.06201139,3470.0,3469.3,0.714]
[1719854063458,2.3591,3469.9,3469.3,0.714]
[1719854063658,0.06201139,3469.8,3469.3,0.714]
[1719854070711,0.06201139,3469.8,3469.0,2.88266]
[1719854070923,0.06201139,3469.8,3469.2,0.714]
[1719854074584,0.06201139,3469.8,3468.8,5.35754]
[1719854074926,2.339,3469.7,3469.1,0.714]
[1719854075224,0.06201139,3469.6,3469.1,0.714]
[1719854075424,2.3809,3469.5,3468.6,5.18009]
[1719854075634,0.06201139,3469.4,3468.8,0.714]
[1719854075922,0.06201139,3469.4,3469.0,0.714]
[1719854078012,2.3809,3469.5,3469.0,0.714]
[1719854078541,0.06201139,3469.4,3469.0,0.714]
[1719854085135,0.06201139,3469.4,3468.8,2.88282]
[1719854085343,0.06201139,3469.4,3468.9,0.714]
[1719854086433,0.06201139,3469.4,3468.8,0.806291]
[1719854086640,0.06201139,3469.4,3468.8,1.520291]
[1719854087144,0.06201139,3469.4,3468.8,0.714]
[1719854090549,0.06201139,3469.4,3468.7,0.714]
[1719854090550,2.4469,3469.3,3468.7,0.714]
[1719854090727,0.06201139,3469.2,3468.7,0.714]
[1719854091710,0.06201139,3469.2,3468.4,5.22973]
[1719854091912,0.06201139,3469.2,3468.6,0.714]
[1719854092214,0.06201139,3469.2,3468.3,2.2568]
[1719854092427,2.4943,3469.1,3468.4,0.714]
[1719854092750,2.4943,3469.1,3468.2,5.76658]
[1719854092751,0.06201139,3469.0,3468.2,5.76658]
[1719854092920,0.06201139,3469.0,3468.4,0.714]
[1719854097453,2.2948,3468.9,3468.2,0.714]
[1719854097757,0.06201139,3468.8,3468.2,0.714]
[1719854099664,0.06201139,3468.8,3468.4,0.714]
[1719854099839,0.06201139,3468.8,3468.2,0.714]
[1719854102375,2.261,3468.7,3468.0,0.714]
[1719854102674,0.29769253,3468.8,3468.0,0.714]
[1719854102675,2.32301139,3468.6,3468.0,0.714]
[1719854102845,2.261,3468.6,3468.0,0.714]
[1719854103252,0.06201139,3468.5,3467.7,2.88371]
[1719854103447,0.06201139,3468.5,3467.9,0.714]
[1719854104272,0.06201139,3468.5,3468.1,0.714]
[1719854104440,2.261,3468.6,3468.1,0.714]
[1719854107074,2.261,3468.6,3468.3,0.714]
[1719854110375,2.261,3468.6,3468.1,0.714]
[1719854111279,2.261,3468.6,3467.7,0.80775536]
[1719854111456,2.261,3468.6,3468.0,0.714]
[1719854115393,2.3676,3468.4,3467.7,2.88374]
[1719854115545,2.3676,3468.4,3467.7,3.59774]
[1719854115884,2.3676,3468.4,3467.7,6.48141]
[1719854116062,2.3676,3468.4,3467.9,0.714]
[1719854120699,2.3676,3468.4,3467.9,3.59758]
[1719854121502,2.3676,3468.4,3467.9,0.714]
[1719854121704,2.3676,3468.4,3467.8,0.648141]
[1719854122382,2.3676,3468.4,3467.7,3.59767]
[1719854122568,0.06201139,3468.3,3467.4,0.0358436]
[1719854122771,2.3904,3468.2,3467.4,0.0358436]
[1719854122994,0.06201139,3468.1,3467.4,0.7498436]
[1719854123381,0.06201139,3468.1,3467.4,3.6337836]
[1719854123581,0.06201139,3468.1,3467.4,4.52015396]
[1719854123803,2.3904,3468.0,3467.4,3.80615396]
[1719854124014,2.3904,3468.0,3467.5,0.714]
[1719854124202,0.06201139,3467.9,3467.5,0.714]
[1719854127181,0.06201139,3467.9,3467.4,0.0358436]
[1719854127182,2.492,3467.8,3467.4,0.0358436]
[1719854127393,2.492,3467.6,3467.4,0.0358436]
[1719854127780,0.06201139,3467.5,3467.4,0.0358436]
[1719854132119,0.11380724,3467.5,3467.4,0.0358436]
[1719854132617,2.38710724,3467.5,3467.4,0.0358436]
[1719854132819,2.63520657,3467.5,3467.4,0.0358436]
[1719854134419,2.32509585,3467.5,3467.4,0.0358436]
[1719854134655,0.05179585,3467.5,3467.4,0.0358436]
[1719854134998,2.44571139,3467.7,3467.4,0.0358436]
[1719854135510,0.11327628,3467.6,3467.4,0.0358436]
[1719854136902,0.05126489,3467.6,3467.4,0.0358436]
[1719854137100,2.4668,3468.0,3467.5,0.714]
[1719854137101,3.0,3467.9,3467.5,0.714]
[1719854137341,0.05129323,3467.8,3467.5,0.714]
[1719854137501,3.0,3467.9,3467.5,0.714]
[1719854137699,0.05132161,3467.8,3467.5,0.714]
[1719854141241,0.05132161,3467.8,3467.4,2.9198136]
[1719854142417,0.05132161,3467.8,3467.4,3.81871096]
[1719854143126,0.05132161,3467.8,3467.4,2.9198136]
[1719854144653,0.05132161,3467.8,3467.4,0.0358436]
[1719854146164,0.05132161,3467.8,3467.4,2.9198136]
[1719854146816,0.06201139,3468.2,3467.4,2.9198136]
[1719854147024,0.05131389,3467.7,3467.4,2.9198136]
[1719854147237,0.06201139,3468.2,3467.4,2.9198136]
[1719854147441,0.05130488,3467.6,3467.4,2.9198136]
[1719854147720,0.06201139,3468.2,3467.4,3.81871096]
[1719854148026,0.05134991,3468.1,3467.4,2.9198136]
[1719854149325,0.05134991,3468.1,3467.7,3.0937]
[1719854149534,7.48,3468.4,3467.9,0.714]
[1719854149754,0.05136792,3468.3,3467.9,0.714]
[1719854149955,0.06201139,3468.5,3467.9,0.714]
[1719854150117,0.05137693,3468.4,3467.9,0.714]
[1719854151180,0.05137693,3468.4,3467.9,3.59757]
[1719854152321,0.05137693,3468.4,3467.9,2.88357]
[1719854156450,0.05137693,3468.4,3468.0,2.8835]
[1719854160554,0.05137693,3468.4,3468.0,3.769585]
[1719854160751,0.05137693,3468.4,3468.2,0.714]
[1719854160940,0.05137693,3468.4,3468.2,3.59729]
[1719854161137,9.8744,3468.8,3468.3,2.88319]
[1719854161350,7.48,3468.8,3468.5,3.59704]
[1719854161555,7.48,3468.8,3468.6,0.36547025]
[1719854161857,2.2798,3469.1,3468.6,0.36547025]
[1719854162058,2.34181139,3469.1,3468.6,0.36547025]
[1719854163437,0.06201139,3469.1,3468.6,3.24842025]
[1719854163648,3.0,3469.2,3468.7,3.71695203]
[1719854163964,7.48,3469.4,3469.1,3.59659]
[1719854164346,7.48,3469.4,3468.9,3.59675]
[1719854164531,7.48,3469.4,3469.0,2.88267]
[1719854164739,7.48,3469.4,3469.0,5.76534]
[1719854164959,7.48,3469.4,3469.1,3.59658]
[1719854165279,7.48,3469.4,3469.0,0.9482292]
[1719854165280,0.06201139,3469.3,3469.0,0.9482292]
[1719854165451,0.06201139,3469.3,3469.0,0.714]
[1719854165837,0.06201139,3469.3,3468.9,3.59668]
[1719854166582,0.04976596,3469.2,3469.0,2.88266]
[1719854166737,7.48,3469.4,3469.1,2.88259]
[1719854166936,7.48,3469.4,3469.3,0.714]
[1719854167141,9.7845,3470.0,3469.3,3.59635]
[1719854167361,9.7845,3470.0,3469.4,2.8823]
[1719854167561,9.7845,3470.4,3469.7,3.59608]
[1719854167768,7.48,3470.8,3470.1,3.59571]
[1719854167970,7.48,3470.8,3469.8,0.0576406]
[1719854167971,0.06201139,3470.7,3470.3,0.714]
[1719854168474,0.06201139,3470.7,3470.2,2.88166]
[1719854169568,0.06201139,3470.7,3470.0,2.88183]
[1719854169875,0.06201139,3470.7,3470.1,2.88175]
[1719854170380,0.06201139,3470.7,3469.9,3.59586]
[1719854170543,0.06201139,3470.7,3470.0,2.88182]
[1719854171272,0.06201139,3470.7,3470.1,2.88175]
[1719854171645,0.77601139,3470.7,3469.6,2.88209]
[1719854171840,0.06201139,3470.7,3469.8,2.88194]
[1719854172044,0.06201139,3470.7,3469.7,2.88206]
[1719854173983,0.06201139,3470.7,3469.2,2.359927]
[1719854174149,0.06201139,3470.7,3469.9,2.88186]
[1719854175351,0.06201139,3470.7,3469.7,2.88209]
[1719854175592,0.06201139,3470.7,3469.8,2.882]
[1719854176421,0.06201139,3470.7,3469.9,2.88192]
[1719854177409,0.06201139,3470.7,3470.0,2.88184]
[1719854179070,0.06201139,3470.7,3469.8,5.76394]
[1719854179260,0.06201139,3470.7,3469.8,2.88194]
[1719854180920,0.06201139,3470.7,3469.5,2.88225]
[1719854180921,2.2787,3470.6,3469.5,2.88225]
[1719854181203,0.06201139,3470.5,3469.7,2.88208]
[1719854181357,0.04534252,3470.4,3469.7,2.88208]
[1719854181972,0.04533353,3470.3,3469.7,2.88208]
[1719854182382,2.2787,3470.6,3469.7,2.88208]
[1719854182601,0.06201139,3470.5,3469.7,2.88208]
[1719854183106,0.04534177,3470.4,3469.7,2.88208]
[1719854183515,2.2787,3470.6,3469.7,2.88208]
[1719854183714,0.04531088,3470.3,3469.7,2.88208]
[1719854184011,0.04530189,3470.2,3469.7,2.88208]
[1719854184422,0.06201139,3470.5,3469.7,2.88208]
[1719854184577,0.04528619,3470.1,3469.7,2.88208]
[1719854184901,2.2787,3470.6,3469.7,2.88208]
[1719854184902,0.06201139,3470.3,3469.7,2.88208]
[1719854185517,0.04529519,3470.2,3469.7,2.88208]
[1719854188002,0.04529519,3470.2,3469.8,2.882]
[1719854192960,0.04529519,3470.2,3470.1,2.88176]
[1719854193287,2.2787,3470.6,3470.2,2.88164]
[1719854193467,2.2787,3470.6,3470.2,3.59464]
[1719854194375,3.0,3470.7,3470.2,3.59464]
[1719854194580,3.0,3470.7,3470.4,2.8815]
[1719854194888,3.06201139,3470.7,3470.2,5.76324]
[1719854195090,0.06201139,3470.7,3470.2,2.8816]
[1719854195974,2.3419,3470.8,3470.2,2.8816]
[1719854196208,2.40391139,3470.8,3470.4,2.8815]
[1719854196355,0.04549703,3470.7,3470.4,2.8815]
[1719854196759,0.04549703,3470.7,3470.4,2.87433435]
[1719854197158,0.04549703,3470.7,3470.5,3.59441]
[1719854197360,5.40391139,3471.1,3470.5,4.24704715]
[1719854197609,0.04554919,3471.0,3470.5,2.88141]
[1719854197819,0.10756058,3471.0,3470.5,2.88141]
[1719854199004,0.10756058,3471.0,3470.5,3.59441]
[1719854201261,0.10756058,3471.0,3470.5,2.88141]
[1719854201489,0.10756058,3471.0,3470.1,2.88171]
[1719854201692,2.4463,3470.7,3470.0,2.88182]
[1719854201895,0.06201139,3470.6,3470.0,2.88182]
[1719854202055,0.10756048,3470.6,3470.0,2.88182]
[1719854203379,2.2582,3470.5,3469.5,2.88225]
[1719854203566,0.06201139,3470.4,3469.6,0.713]
[1719854203762,0.10754121,3470.4,3469.6,3.59513]
[1719854204516,0.10754121,3470.4,3469.8,0.713]
[1719854207313,0.10754121,3470.4,3469.6,2.88213]
[1719854207471,0.10754121,3470.4,3469.8,0.713]
[1719854207672,0.36965394,3470.4,3469.8,0.713]
[1719854208495,2.3332,3470.3,3469.3,2.8824]
[1719854208821,2.3332,3470.1,3469.4,0.713]
[1719854209136,0.10742176,3470.0,3469.4,0.713]
[1719854209475,0.10742176,3470.0,3469.6,0.713]
[1719854211534,0.35148394,3470.0,3469.4,0.713]
[1719854211679,2.3711,3469.9,3469.2,0.713]
[1719854212014,0.06201139,3469.8,3469.2,0.713]
[1719854212236,0.10727909,3469.8,3469.2,0.713]
[1719854212436,0.10727909,3469.8,3469.1,0.713]
[1719854212725,0.10727909,3469.8,3469.0,0.713]
[1719854212726,2.453,3469.7,3469.0,0.713]
[1719854212887,0.06201139,3469.6,3469.0,0.713]
[1719854213089,0.10725646,3469.6,3469.0,0.713]
[1719854213294,0.36328211,3469.6,3468.8,0.713]
[1719854213778,0.36328211,3469.6,3468.7,2.8829]
[1719854213976,2.4618,3469.5,3468.8,0.713]
[1719854214243,0.06201139,3469.4,3468.6,2.88298]
[1719854214380,2.4618,3469.2,3468.2,5.33287]
[1719854214587,0.06201139,3469.1,3468.4,0.713]
[1719854214894,0.10721146,3469.1,3468.6,0.713]
[1719854215928,0.10721146,3469.1,3468.5,2.88308]
[1719854216435,0.10721146,3469.1,3468.5,3.704666]
[1719854216980,0.04520007,3469.1,3468.5,3.704666]
[1719854217489,0.06201139,3469.3,3468.7,2.88291]
[1719854217686,0.04509425,3469.0,3468.7,2.88291]
[1719854217986,0.06201139,3469.3,3468.7,3.5416676]
[1719854218382,0.04511225,3469.2,3468.7,3.5416676]
[1719854220421,2.3679,3469.1,3468.3,2.88319]
[1719854220647,2.3679,3469.1,3468.3,2.88318]
[1719854220788,0.04509768,3469.0,3468.3,2.88318]
[1719854221609,0.04509768,3469.0,3468.5,2.88303]
[1719854221789,0.04509768,3469.0,3468.6,2.883]
[1719854225203,0.04509768,3469.0,3468.7,2.88292]
[1719854225407,2.4384,3469.3,3468.7,2.94057235]
[1719854225713,0.04506413,3469.2,3468.7,2.94057235]
[1719854226051,0.04506413,3469.2,3468.8,2.9404124]
[1719854226193,0.04506413,3469.2,3468.9,3.17672124]
[1719854226531,9.8124,3469.6,3469.1,2.88259]
[1719854226689,9.8124,3469.6,3469.2,2.88249]
[1719854226889,9.8124,3469.6,3469.0,2.88259]
[1719854227303,9.8124,3469.6,3469.1,2.88252]
[1719854227520,9.8124,3469.6,3468.9,0.29404124]
[1719854227796,2.4187,3469.4,3468.2,2.4511]
[1719854228028,0.06201139,3469.3,3468.6,2.88294]
[1719854228535,0.06201139,3469.3,3468.7,2.88291]
[1719854229244,2.48071139,3469.4,3468.7,2.88291]
[1719854231129,2.48071139,3469.4,3468.8,2.88283]
[1719854231841,2.48071139,3469.4,3469.1,2.88258]
[1719854231842,2.4187,3469.4,3469.1,2.88258]
[1719854232711,2.4187,3469.4,3469.2,2.88249]
[1719854233034,7.48,3469.6,3469.2,2.88249]
[1719854236042,7.48,3469.6,3469.0,2.88261]
[1719854236413,2.4379,3469.7,3469.0,5.7652]
[1719854236712,0.06201139,3469.6,3469.1,2.88257]
[1719854237360,2.4262,3469.5,3468.8,2.8828]
[1719854237513,0.06201139,3469.4,3468.6,2.88298]
[1719854237712,2.4262,3469.3,3468.6,2.88298]
[1719854237909,0.06201139,3469.2,3468.6,2.88298]
[1719854238847,0.06201139,3469.2,3468.4,2.8831]
[1719854239054,0.06201139,3469.2,3468.4,0.75961]
[1719854239213,0.06201139,3469.2,3468.2,2.88332]
[1719854239214,2.2858,3469.1,3468.2,2.88332]
[1719854239426,0.06201139,3469.0,3468.3,2.88319]
[1719854241757,2.2858,3469.1,3468.5,2.88303]
[1719854241960,2.2858,3469.1,3468.5,2.9406854]
[1719854242842,2.2858,3469.1,3468.6,2.883]
[1719854243621,2.467,3469.5,3468.9,2.88268]
[1719854243822,0.04349645,3469.4,3469.0,0.29403347]
[1719854244046,0.04349645,3469.4,3468.9,2.88268]
[1719854245164,0.10550784,3469.4,3468.8,2.88277]
[1719854245725,2.3442,3469.3,3468.6,2.88299]
[1719854245944,0.06201139,3469.2,3468.6,2.88299]
[1719854246147,0.10550666,3469.2,3468.6,2.88299]
[1719854246319,0.06201139,3469.2,3468.6,2.88299]
[1719854246957,0.06201139,3469.2,3468.6,5.76593]
[1719854247460,2.3442,3469.3,3468.7,2.8829]
[1719854247670,0.04349527,3469.2,3468.7,2.8829]
[1719854247838,2.3442,3469.3,3468.7,2.8829]
[1719854248025,0.0434888,3469.2,3468.7,2.8829]
[1719854248227,2.3442,3469.3,3468.7,2.8829]
[1719854248437,0.04348751,3469.2,3468.7,2.8829]
[1719854248643,2.3442,3469.3,3468.7,2.8829]
[1719854248841,2.3442,3469.3,3468.8,2.94044405]
[1719854248842,0.04348751,3469.2,3468.8,2.94044405]
[1719854249126,2.3442,3469.3,3468.9,2.88268]
[1719854249326,0.04347851,3469.1,3468.9,2.88268]
[1719854249525,2.3442,3469.3,3469.0,2.88266]
[1719854249968,0.04348751,3469.2,3469.0,2.88266]
[1719854250127,0.04348751,3469.2,3468.8,5.76555]
[1719854250331,2.3442,3469.3,3468.8,3.59676]
[1719854250875,0.04350302,3469.2,3468.8,6.47953]
[1719854251020,2.3442,3469.3,3468.8,3.59676]
[1719854251228,0.04350302,3469.2,3468.8,3.59676]
[1719854251470,2.3442,3469.3,3468.9,2.88272]
[1719854251627,0.04350302,3469.2,3468.9,2.88272]
[1719854251826,2.3442,3469.3,3468.9,2.88272]
[1719854252047,0.04350302,3469.2,3469.0,2.88265]
[1719854252240,2.3442,3469.3,3469.1,2.88259]
[1719854253355,2.432,3469.8,3469.3,2.88235]
[1719854253667,2.432,3469.8,3469.4,0.714]
[1719854254027,2.432,3469.8,3469.2,2.88249]
[1719854254232,2.432,3469.8,3469.2,3.59649]
[1719854255742,2.432,3469.8,3469.2,2.88249]
[1719854255949,0.06201139,3469.7,3469.0,5.76526]
[1719854256269,2.3373,3469.6,3469.1,2.88258]
[1719854256438,0.04357527,3469.5,3469.1,2.88258]
[1719854256641,0.04357527,3469.5,3469.2,2.88247]
[1719854257521,0.04357527,3469.5,3469.2,2.88242]
[1719854257741,0.04357527,3469.5,3469.2,3.17642648]
[1719854258538,2.3373,3469.8,3469.2,3.17642648]
[1719854258740,0.0435611,3469.4,3469.2,2.88242]
[1719854258946,2.3373,3469.8,3469.3,2.8824]
[1719854259542,2.3373,3469.8,3469.5,2.88224]
[1719854259955,2.3373,3469.8,3469.5,5.76442]
[1719854260656,2.3373,3469.8,3469.5,2.88218]
[1719854270987,2.3373,3469.8,3469.3,2.88235]
[1719854271459,0.0427562,3469.7,3469.3,2.88235]
[1719854271797,0.0427562,3469.7,3469.3,5.7647]
[1719854272662,0.0427562,3469.7,3469.4,2.88233]
[1719854275395,0.10476759,3469.7,3469.0,5.76526]
[1719854275563,0.0427562,3469.7,3469.0,3.861856]
[1719854275763,0.0427562,3469.7,3469.1,2.88253]
[1719854275969,0.0427562,3469.7,3469.4,0.713]
[1719854278036,0.0427562,3469.7,3469.6,0.713]
[1719854279884,0.0427562,3469.7,3469.5,2.88223]
[1719854282040,0.0427562,3469.7,3469.6,6.47734]
[1719854282382,7.48,3470.0,3469.9,2.88192]
[1719854282592,2.3094,3470.3,3469.9,3.59492]
[1719854283100,0.04283372,3470.2,3469.9,3.59492]
[1719854284216,0.04283372,3470.2,3469.7,6.47708]
[1719854284383,0.04283372,3470.2,3469.7,3.59501]
[1719854284583,0.64626962,3470.2,3469.7,0.713]
[1719854284782,0.64626962,3470.2,3469.5,2.88222]
[1719854284783,2.2996,3470.1,3469.5,2.88222]
[1719854285020,0.06201139,3470.0,3469.5,2.88222]
[1719854285232,0.10482712,3470.0,3469.5,2.88222]
[1719854285824,0.10482712,3470.0,3469.4,0.713]
[1719854286008,2.3277,3469.9,3469.4,0.713]
[1719854286342,0.04279773,3469.8,3469.4,0.713]
[1719854286498,0.04279773,3469.8,3469.4,3.59532]
[1719854290887,0.04279773,3469.8,3469.2,2.88247]
[1719854291087,0.04279773,3469.8,3469.2,5.76491]
[1719854291296,0.04279773,3469.8,3469.4,0.713]
[1719854293234,0.04279773,3469.8,3469.4,3.59529]
[1719854294187,0.04279773,3469.8,3469.4,0.713]
[1719854296890,0.10480912,3469.8,3469.3,0.713]
[1719854298220,0.04279773,3469.8,3469.3,3.59541]
[1719854298412,0.04279773,3469.8,3469.5,0.713]
[1719854299015,0.04279773,3469.8,3469.7,0.713]
[1719854299338,2.3688,3470.1,3469.7,0.713]
[1719854299536,0.04281197,3469.8,3469.7,0.713]
[1719854299832,2.3688,3470.1,3469.7,0.713]
[1719854300036,0.04281197,3469.8,3469.7,0.713]
[1719854300234,7.48,3470.2,3469.7,4.2485723]
[1719854300540,7.48,3470.2,3470.0,0.713]
[1719854300712,2.3688,3470.3,3470.0,0.713]
[1719854300898,2.3688,3470.3,3470.2,0.713]
[1719854301403,7.48,3471.1,3470.2,0.713]
[1719854301603,2.3688,3471.4,3470.7,3.59426]
[1719854301794,2.3688,3471.4,3470.9,0.713]
[1719854302229,2.3688,3471.4,3470.7,3.59426]
[1719854302430,2.43081139,3471.4,3470.7,3.59426]
[1719854302936,2.3688,3471.4,3470.9,0.713]
[1719854303140,2.3688,3471.4,3470.9,3.59409]
[1719854303822,2.2508,3471.7,3471.3,3.59373]
[1719854304138,7.48,3471.8,3471.6,0.713]
[1719854304306,2.2508,3472.1,3471.4,0.713]
[1719854305236,2.2508,3472.1,3471.3,2.88073]
[1719854305438,2.2508,3472.1,3471.4,0.713]
[1719854305737,2.2508,3472.1,3471.3,2.88073]
[1719854307304,0.06201139,3472.0,3471.3,2.88073]
[1719854307677,3.06201139,3472.2,3471.3,0.05761002]
[1719854307840,3.06201139,3472.2,3471.6,2.8805]
[1719854309849,3.06201139,3472.2,3471.3,2.88071]
[1719854311120,0.06201139,3472.1,3471.3,2.88071]
[1719854311353,2.3032,3472.0,3471.1,2.8809]
[1719854311558,0.06201139,3471.9,3471.1,2.8809]
[1719854312351,0.06201139,3471.9,3471.3,2.88076]
[1719854312710,0.06201139,3471.9,3471.0,2.88094]
[1719854312910,0.23652114,3471.8,3471.0,2.88094]
[1719854313106,0.06201139,3471.7,3471.0,2.88094]
[1719854313337,0.06201139,3471.7,3470.8,2.88111]
[1719854313549,0.06201139,3471.7,3470.8,2.88112]
[1719854313710,0.04194933,3471.6,3470.9,2.88108]
[1719854314724,0.04194933,3471.6,3470.7,3.53452]
[1719854314965,2.2939,3471.5,3470.8,2.88117]
[1719854315126,0.06201139,3471.4,3470.8,2.88117]
[1719854315329,0.04190583,3471.3,3470.8,2.88117]
[1719854317864,2.2939,3471.5,3470.9,2.88108]
[1719854318319,0.04191482,3471.4,3470.9,2.88108]
[1719854319356,0.04191482,3471.4,3471.0,2.88101]
[1719854320862,7.48,3471.7,3471.0,2.88101]
[1719854321023,0.04190583,3471.3,3471.0,2.88101]
[1719854321222,7.48,3471.7,3471.0,3.5867194]
[1719854321552,7.48,3471.7,3471.0,2.88101]
[1719854321753,0.0419328,3471.6,3471.1,0.05761499]
[1719854321950,0.0419328,3471.6,3471.3,2.88074]
[1719854322158,0.0419328,3471.6,3471.4,2.88066]
[1719854323561,7.48,3472.2,3471.5,2.88059]
[1719854323562,9.832,3472.2,3471.5,2.88059]
[1719854323758,2.352,3472.2,3471.8,2.88034]
[1719854323957,2.352,3472.5,3471.8,2.88034]
[1719854325460,2.352,3472.5,3471.9,2.88025]
[1719854325757,0.06201139,3472.4,3471.7,2.88037]
[1719854325943,0.06201139,3472.4,3471.7,3.59237]
[1719854326525,0.06201139,3472.4,3471.8,2.88033]
[1719854327554,0.06201139,3472.4,3471.4,0.57614]
[1719854327750,2.4699,3472.3,3471.6,0.712]
[1719854328060,0.06201139,3472.2,3471.5,3.59259]
[1719854329579,0.06201139,3472.2,3471.1,2.88087]
[1719854329728,0.06201139,3472.2,3471.4,0.712]
[1719854329928,0.38640253,3472.2,3471.4,0.712]
[1719854331067,0.06201139,3472.2,3471.6,0.712]
[1719854331375,0.04215899,3472.1,3471.6,0.712]
[1719854333081,0.04215899,3472.1,3471.8,0.712]
[1719854333437,2.4699,3472.3,3471.8,0.712]
[1719854334073,0.04217422,3472.2,3471.8,0.712]
[1719854334573,2.4699,3472.3,3471.8,0.712]
[1719854334872,0.04216524,3472.1,3471.8,3.64993437]
[1719854335050,0.04216797,3472.2,3471.8,3.64993437]
[1719854335254,5.35141139,3472.6,3471.8,3.64993437]
[1719854335459,0.04215899,3472.1,3471.8,3.64993437]
[1719854335653,5.35141139,3472.6,3471.8,4.25679781]
[1719854335872,0.04158667,3472.0,3471.9,2.88026]
[1719854336339,5.35141139,3472.6,3471.9,2.88026]
[1719854336742,0.04163159,3472.5,3471.9,2.88026]
[1719854336939,0.04163159,3472.5,3471.8,3.59233]
[1719854336940,0.04163159,3472.5,3471.8,0.712]
[1719854337189,0.04163159,3472.5,3471.7,3.59237]
[1719854337892,0.04163159,3472.5,3471.8,2.88034]
[1719854338187,0.10364298,3472.5,3471.8,2.88034]
[1719854339393,0.10364298,3472.5,3471.7,0.712]
[1719854339909,3.2028,3472.4,3471.4,0.712]
[1719854340186,0.10364703,3472.3,3471.4,0.712]
[1719854340387,0.06201139,3472.2,3471.4,0.712]
[1719854340746,0.10363805,3472.2,3471.4,0.712]
[1719854341975,0.10363805,3472.2,3471.3,2.8807]
[1719854342284,2.371,3472.1,3471.2,3.59278]
[1719854342490,2.371,3472.1,3471.3,0.647375]
[1719854342491,0.06201139,3472.0,3471.3,0.647375]
[1719854342654,0.10362633,3472.0,3471.3,0.647375]
[1719854342850,2.3099,3471.9,3471.3,0.647375]
[1719854343188,2.35150595,3471.9,3471.3,0.647375]
[1719854344980,2.35150595,3471.9,3471.2,0.712]
[1719854345293,3.0615,3471.7,3470.7,3.53452]
[1719854345461,3.0615,3471.7,3470.7,6.4157]
[1719854345462,0.06201139,3471.6,3470.7,6.4157]
[1719854345665,0.10357117,3471.6,3470.8,3.59316]
[1719854345870,0.10357117,3471.6,3471.0,0.712]
[1719854347652,0.10357117,3471.6,3470.9,0.712767]
[1719854349266,0.10357117,3471.6,3470.1,8.27758]
[1719854349267,0.712,3471.3,3470.1,8.27758]
[1719854349461,2.2924,3471.2,3470.3,1.071475]
[1719854349768,0.06201139,3471.1,3470.3,1.071475]
[1719854349975,0.10338358,3471.1,3470.4,0.6349055]
[1719854350605,2.278,3471.0,3470.3,0.359475]
[1719854350892,0.06201139,3470.9,3470.0,0.725]
[1719854351278,0.06201139,3470.9,3469.6,5.37737]
[1719854351279,2.3822,3470.7,3469.6,5.37737]
[1719854351452,2.3822,3470.7,3469.7,1.55096]